[Event "Early-Titled-Tuesday-Blitz-November-28-2023"]
[Site "Chess.com"]
[Date "2023.11.28"]
[Round "6"]
[White "vishwa_vijeta"]
[Black "fighter2jz"]
[Result "0-1"]
[WhiteElo "2555"]
[BlackElo "2860"]
[TimeControl "180+1"]
[EndTime "9:13:48 PST"]
[Termination "fighter2jz won on time"]

1. e4 {[%clk 0:03:00.9]} 1... c5 {[%clk 0:02:57.2]} 2. Nf3 {[%clk 0:02:59.5]}
2... d6 {[%clk 0:02:57]} 3. d4 {[%clk 0:02:59.5]} 3... cxd4 {[%clk 0:02:57.9]}
4. Nxd4 {[%clk 0:03:00.3]} 4... Nf6 {[%clk 0:02:58.5]} 5. Nc3 {[%clk 0:03:00.6]}
5... a6 {[%clk 0:02:59.2]} 6. Bg5 {[%clk 0:03:00.5]} 6... e5 {[%clk 0:02:59.1]}
7. Nf3 {[%clk 0:02:48.1]} 7... Be7 {[%clk 0:02:57.2]} 8. Bc4 {[%clk 0:02:28.6]}
8... Be6 {[%clk 0:02:37.6]} 9. Bxe6 {[%clk 0:02:24.4]} 9... fxe6 {[%clk
0:02:38.5]} 10. O-O {[%clk 0:02:23.5]} 10... O-O {[%clk 0:02:38.1]} 11. a3
{[%clk 0:02:17.5]} 11... Nbd7 {[%clk 0:02:35.6]} 12. Qe2 {[%clk 0:02:17]} 12...
Rc8 {[%clk 0:02:34.7]} 13. Rad1 {[%clk 0:02:15.7]} 13... Qb6 {[%clk 0:02:08.9]}
14. Na4 {[%clk 0:01:54.5]} 14... Qc6 {[%clk 0:02:06.4]} 15. Nc3 {[%clk
0:01:54.2]} 15... Nb6 {[%clk 0:01:51]} 16. Nd2 {[%clk 0:01:47.1]} 16... Rfe8
{[%clk 0:01:45.5]} 17. Be3 {[%clk 0:01:41]} 17... Red8 {[%clk 0:01:18.9]} 18.
Rfe1 {[%clk 0:01:25]} 18... Nbd7 {[%clk 0:01:08.9]} 19. f3 {[%clk 0:01:10.5]}
19... d5 {[%clk 0:01:08.2]} 20. exd5 {[%clk 0:01:02.4]} 20... exd5 {[%clk
0:01:09.1]} 21. Bf2 {[%clk 0:00:41.9]} 21... d4 {[%clk 0:01:07.6]} 22. Nce4
{[%clk 0:00:40.9]} 22... Qxc2 {[%clk 0:01:06.6]} 23. f4 {[%clk 0:00:35.4]} 23...
Qxb2 {[%clk 0:00:29.7]} 24. fxe5 {[%clk 0:00:34.7]} 24... Nxe5 {[%clk
0:00:29.6]} 25. Ng5 {[%clk 0:00:34.9]} 25... Bd6 {[%clk 0:00:25.7]} 26. Bg3
{[%clk 0:00:30.7]} 26... Re8 {[%clk 0:00:23]} 27. Nde4 {[%clk 0:00:19.8]} 27...
Qxe2 {[%clk 0:00:21.5]} 28. Rxe2 {[%clk 0:00:18.4]} 28... Nxe4 {[%clk
0:00:18.6]} 29. Rxe4 {[%clk 0:00:18.8]} 29... Bb8 {[%clk 0:00:14.9]} 30. Kf1
{[%clk 0:00:06.2]} 30... Nc6 {[%clk 0:00:13.6]} 31. Rxe8+ {[%clk 0:00:05.7]}
31... Rxe8 {[%clk 0:00:14.5]} 32. Bf2 {[%clk 0:00:03.5]} 32... Bf4 {[%clk
0:00:10.8]} 33. Nf3 {[%clk 0:00:03.4]} 33... Be3 {[%clk 0:00:11.5]} 34. Bg3
{[%clk 0:00:02]} 34... h6 {[%clk 0:00:10.9]} 35. Re1 {[%clk 0:00:01.5]} 35...
Rf8 {[%clk 0:00:10.8]} 36. Rd1 {[%clk 0:00:01.8]} 36... Rf5 {[%clk 0:00:11]} 37.
Rd3 {[%clk 0:00:01.9]} 37... Rb5 {[%clk 0:00:11.4]} 38. h3 {[%clk 0:00:02.2]}
38... Rb2 {[%clk 0:00:11.7]} 39. Be1 {[%clk 0:00:02.2]} 39... g5 {[%clk
0:00:11.2]} 40. h4 {[%clk 0:00:01.8]} 40... g4 {[%clk 0:00:11]} 41. Nh2 {[%clk
0:00:02.4]} 41... h5 {[%clk 0:00:11.6]} 42. g3 {[%clk 0:00:02.3]} 42... Rxh2
{[%clk 0:00:11.2]} 0-1

[Event "Early-Titled-Tuesday-Blitz-November-28-2023"]
[Site "Chess.com"]
[Date "2023.11.28"]
[Round "6"]
[White "SlavenPastar"]
[Black "verrbaa"]
[Result "1-0"]
[WhiteElo "2652"]
[BlackElo "2478"]
[TimeControl "180+1"]
[EndTime "9:13:49 PST"]
[Termination "SlavenPastar won on time"]

1. b3 {[%clk 0:03:00.9]} 1... e5 {[%clk 0:02:56.4]} 2. Bb2 {[%clk 0:03:01.5]}
2... Nc6 {[%clk 0:02:56.6]} 3. Nf3 {[%clk 0:03:01.8]} 3... d6 {[%clk 0:02:55.2]}
4. d4 {[%clk 0:03:01.6]} 4... e4 {[%clk 0:02:22.7]} 5. d5 {[%clk 0:03:01.1]}
5... exf3 {[%clk 0:02:17.5]} 6. dxc6 {[%clk 0:03:01]} 6... bxc6 {[%clk
0:02:16.7]} 7. gxf3 {[%clk 0:03:00.3]} 7... Nf6 {[%clk 0:02:12.9]} 8. Nc3 {[%clk
0:02:52.9]} 8... d5 {[%clk 0:02:01]} 9. Qd2 {[%clk 0:02:44]} 9... Be6 {[%clk
0:01:57.4]} 10. O-O-O {[%clk 0:02:43.1]} 10... Be7 {[%clk 0:01:37.5]} 11. Rg1
{[%clk 0:02:41.9]} 11... Kf8 {[%clk 0:01:34.9]} 12. e4 {[%clk 0:02:41.9]} 12...
h6 {[%clk 0:01:26.5]} 13. Kb1 {[%clk 0:02:28.2]} 13... a5 {[%clk 0:01:26]} 14.
Be2 {[%clk 0:02:17.4]} 14... dxe4 {[%clk 0:00:59.3]} 15. Qxd8+ {[%clk
0:02:07.2]} 15... Rxd8 {[%clk 0:00:58.8]} 16. Rxd8+ {[%clk 0:02:03.8]} 16...
Bxd8 {[%clk 0:00:59.7]} 17. fxe4 {[%clk 0:02:04]} 17... g5 {[%clk 0:00:48.6]}
18. Na4 {[%clk 0:01:36.5]} 18... Rg8 {[%clk 0:00:48]} 19. Nc5 {[%clk 0:01:33.9]}
19... Bc8 {[%clk 0:00:33.2]} 20. f3 {[%clk 0:01:21.3]} 20... Be7 {[%clk
0:00:32.9]} 21. Nd3 {[%clk 0:01:21.4]} 21... g4 {[%clk 0:00:18.3]} 22. Bxf6
{[%clk 0:01:17.6]} 22... Bxf6 {[%clk 0:00:18.1]} 23. fxg4 {[%clk 0:01:14.3]}
23... Ke7 {[%clk 0:00:17.9]} 24. e5 {[%clk 0:01:08.7]} 24... Bg5 {[%clk
0:00:16.8]} 25. Bf3 {[%clk 0:01:01.4]} 25... Bd7 {[%clk 0:00:13.5]} 26. c3
{[%clk 0:00:57.2]} 26... Rb8 {[%clk 0:00:13.2]} 27. Kc2 {[%clk 0:00:56.5]} 27...
a4 {[%clk 0:00:08]} 28. b4 {[%clk 0:00:55.2]} 28... Be3 {[%clk 0:00:04.4]} 29.
Re1 {[%clk 0:00:52.8]} 29... Bb6 {[%clk 0:00:04.5]} 30. c4 {[%clk 0:00:47.1]}
30... Bd4 {[%clk 0:00:04]} 31. Re4 {[%clk 0:00:37.2]} 31... c5 {[%clk
0:00:04.1]} 32. bxc5 {[%clk 0:00:18.2]} 32... Bc6 {[%clk 0:00:04.3]} 33. Rf4
{[%clk 0:00:17.2]} 33... Bxf3 {[%clk 0:00:04.2]} 34. Rxf3 {[%clk 0:00:17.8]}
34... a3 {[%clk 0:00:04.5]} 35. Rf4 {[%clk 0:00:17.6]} 35... Bg1 {[%clk
0:00:04.1]} 36. h3 {[%clk 0:00:16.6]} 36... Rd8 {[%clk 0:00:03.4]} 37. Rf6
{[%clk 0:00:15.8]} 37... Be3 {[%clk 0:00:02.7]} 38. Ra6 {[%clk 0:00:14.8]} 38...
Rd4 {[%clk 0:00:02.7]} 39. Kc3 {[%clk 0:00:14]} 39... Re4 {[%clk 0:00:03.2]} 40.
Rxa3 {[%clk 0:00:13.4]} 40... Bg1 {[%clk 0:00:03.6]} 41. Ra6 {[%clk 0:00:13.2]}
41... Re3 {[%clk 0:00:04]} 42. Rc6 {[%clk 0:00:13]} 42... Rxh3 {[%clk
0:00:03.8]} 43. Rxc7+ {[%clk 0:00:13]} 43... Kd8 {[%clk 0:00:04.5]} 44. Rc6
{[%clk 0:00:13.4]} 44... Rh2 {[%clk 0:00:03.8]} 45. a4 {[%clk 0:00:12.2]} 45...
Be3 {[%clk 0:00:03.9]} 46. a5 {[%clk 0:00:12.2]} 46... Ra2 {[%clk 0:00:04]} 47.
a6 {[%clk 0:00:12.1]} 47... Bd2+ {[%clk 0:00:03.5]} 48. Kb3 {[%clk 0:00:12.2]}
48... Ra1 {[%clk 0:00:03.7]} 49. Rd6+ {[%clk 0:00:11.8]} 49... Ke7 {[%clk
0:00:03.8]} 50. c6 {[%clk 0:00:12.2]} 50... Be3 {[%clk 0:00:01.9]} 51. c7 {[%clk
0:00:12]} 1-0

[Event "Early-Titled-Tuesday-Blitz-November-28-2023"]
[Site "Chess.com"]
[Date "2023.11.28"]
[Round "6"]
[White "Jojo_898"]
[Black "Viacheslav92"]
[Result "0-1"]
[WhiteElo "2383"]
[BlackElo "2558"]
[TimeControl "180+1"]
[EndTime "9:13:49 PST"]
[Termination "Viacheslav92 won on time"]

1. e4 {[%clk 0:03:00.9]} 1... c5 {[%clk 0:02:59.4]} 2. Nf3 {[%clk 0:03:00.8]}
2... d6 {[%clk 0:02:59.8]} 3. c3 {[%clk 0:02:59.6]} 3... Nf6 {[%clk 0:02:59.6]}
4. Bd3 {[%clk 0:02:59.8]} 4... e6 {[%clk 0:02:57.1]} 5. O-O {[%clk 0:02:59.3]}
5... Nc6 {[%clk 0:02:57.6]} 6. Bc2 {[%clk 0:02:58.7]} 6... Be7 {[%clk 0:02:56]}
7. a3 {[%clk 0:02:58.6]} 7... O-O {[%clk 0:02:55.5]} 8. d4 {[%clk 0:02:58.7]}
8... e5 {[%clk 0:02:51.7]} 9. Be3 {[%clk 0:02:55.6]} 9... Re8 {[%clk 0:02:50.4]}
10. Nbd2 {[%clk 0:02:53.1]} 10... Qc7 {[%clk 0:02:50.1]} 11. Rc1 {[%clk
0:02:47.4]} 11... h6 {[%clk 0:02:49.6]} 12. Bb1 {[%clk 0:02:46.7]} 12... Ng4
{[%clk 0:02:48.9]} 13. Qe2 {[%clk 0:02:29.6]} 13... Nxe3 {[%clk 0:02:47.8]} 14.
Qxe3 {[%clk 0:02:29.8]} 14... Bd7 {[%clk 0:02:45.6]} 15. Rfd1 {[%clk 0:02:22.6]}
15... Bf6 {[%clk 0:02:44.8]} 16. d5 {[%clk 0:02:18.4]} 16... Ne7 {[%clk
0:02:43.9]} 17. Ba2 {[%clk 0:02:15]} 17... Ng6 {[%clk 0:02:41.5]} 18. b4 {[%clk
0:02:14]} 18... b6 {[%clk 0:02:37.5]} 19. bxc5 {[%clk 0:02:13]} 19... bxc5
{[%clk 0:02:32.9]} 20. Nc4 {[%clk 0:02:13.5]} 20... Rab8 {[%clk 0:02:25.1]} 21.
Rb1 {[%clk 0:02:12.3]} 21... Nf4 {[%clk 0:02:23.1]} 22. Kf1 {[%clk 0:01:57.8]}
22... Bg4 {[%clk 0:02:20.2]} 23. h3 {[%clk 0:01:57.6]} 23... Bd7 {[%clk
0:02:18.9]} 24. Ng1 {[%clk 0:01:57.3]} 24... Bg5 {[%clk 0:02:17.5]} 25. Qf3
{[%clk 0:01:55.7]} 25... Rxb1 {[%clk 0:02:05.5]} 26. Rxb1 {[%clk 0:01:54.8]}
26... Rb8 {[%clk 0:02:06.2]} 27. Qd1 {[%clk 0:01:53.5]} 27... a6 {[%clk
0:02:01.3]} 28. a4 {[%clk 0:01:42.3]} 28... h5 {[%clk 0:01:49.2]} 29. Ne2 {[%clk
0:01:41]} 29... Nxe2 {[%clk 0:01:44.7]} 30. Kxe2 {[%clk 0:01:35.9]} 30... g6
{[%clk 0:01:40.2]} 31. Ke1 {[%clk 0:01:31.8]} 31... Kg7 {[%clk 0:01:35.5]} 32.
a5 {[%clk 0:01:29.2]} 32... Bb5 {[%clk 0:01:32]} 33. Nb6 {[%clk 0:01:28]} 33...
c4 {[%clk 0:01:29.3]} 34. Qe2 {[%clk 0:01:24.5]} 34... Bd8 {[%clk 0:00:52.5]}
35. Rb4 {[%clk 0:01:06.6]} 35... Qa7 {[%clk 0:00:49.4]} 36. Bxc4 {[%clk
0:01:06.1]} 36... Bxb6 {[%clk 0:00:44.4]} 37. axb6 {[%clk 0:01:00]} 37... Qxb6
{[%clk 0:00:44.3]} 38. Bxb5 {[%clk 0:00:32.7]} 38... axb5 {[%clk 0:00:45.2]} 39.
Kf1 {[%clk 0:00:17]} 39... Qc5 {[%clk 0:00:44.7]} 40. Qd3 {[%clk 0:00:13.9]}
40... h4 {[%clk 0:00:41]} 41. Kg1 {[%clk 0:00:12.2]} 41... Rb7 {[%clk
0:00:36.3]} 42. Qd2 {[%clk 0:00:10.2]} 42... Rc7 {[%clk 0:00:32.7]} 43. Rb3
{[%clk 0:00:09.6]} 43... Qc4 {[%clk 0:00:30.7]} 44. Qc2 {[%clk 0:00:08.5]} 44...
b4 {[%clk 0:00:27.3]} 45. Kh2 {[%clk 0:00:08.1]} 45... bxc3 {[%clk 0:00:26.8]}
46. Rb6 {[%clk 0:00:08.7]} 46... Qd4 {[%clk 0:00:21.9]} 47. Rxd6 {[%clk
0:00:01.3]} 47... Qd2 {[%clk 0:00:21.7]} 0-1

[Event "Early-Titled-Tuesday-Blitz-November-28-2023"]
[Site "Chess.com"]
[Date "2023.11.28"]
[Round "6"]
[White "marvinguevara"]
[Black "giomar27"]
[Result "1-0"]
[WhiteElo "2178"]
[BlackElo "2429"]
[TimeControl "180+1"]
[EndTime "9:13:51 PST"]
[Termination "marvinguevara won by checkmate"]

1. e4 {[%clk 0:02:57.4]} 1... e5 {[%clk 0:02:59.6]} 2. Nf3 {[%clk 0:02:56.4]}
2... Nc6 {[%clk 0:03:00]} 3. Bc4 {[%clk 0:02:55.9]} 3... Nf6 {[%clk 0:02:59.6]}
4. Ng5 {[%clk 0:02:55.9]} 4... d5 {[%clk 0:02:59.2]} 5. exd5 {[%clk 0:02:56]}
5... Na5 {[%clk 0:02:59.1]} 6. Bb5+ {[%clk 0:02:56.6]} 6... c6 {[%clk
0:02:59.6]} 7. dxc6 {[%clk 0:02:57.2]} 7... bxc6 {[%clk 0:03:00.5]} 8. Bd3
{[%clk 0:02:57.3]} 8... Ng4 {[%clk 0:02:57.8]} 9. Ne4 {[%clk 0:02:51.5]} 9... f5
{[%clk 0:02:57.2]} 10. Nec3 {[%clk 0:02:38.4]} 10... e4 {[%clk 0:02:49.5]} 11.
Be2 {[%clk 0:02:37.3]} 11... h5 {[%clk 0:02:49.5]} 12. h3 {[%clk 0:02:34.9]}
12... Nxf2 {[%clk 0:02:17.8]} 13. Kxf2 {[%clk 0:02:32.7]} 13... Bc5+ {[%clk
0:02:18]} 14. Kf1 {[%clk 0:02:30.9]} 14... Qh4 {[%clk 0:02:16.5]} 15. Qe1 {[%clk
0:02:06]} 15... Qf4+ {[%clk 0:02:16.2]} 16. Bf3 {[%clk 0:02:06.2]} 16... O-O
{[%clk 0:02:16.2]} 17. d4 {[%clk 0:02:04.3]} 17... Qc7 {[%clk 0:02:07.9]} 18.
dxc5 {[%clk 0:02:04.1]} 18... exf3 {[%clk 0:02:08.3]} 19. gxf3 {[%clk
0:02:00.6]} 19... Ba6+ {[%clk 0:02:08.5]} 20. Kg1 {[%clk 0:01:55.9]} 20... Rae8
{[%clk 0:02:07.4]} 21. Qf2 {[%clk 0:01:51.3]} 21... Rf6 {[%clk 0:01:47]} 22. Bg5
{[%clk 0:01:50.5]} 22... Rfe6 {[%clk 0:01:40.7]} 23. Nd2 {[%clk 0:01:48.9]}
23... Qb7 {[%clk 0:01:25.4]} 24. Nb3 {[%clk 0:01:42.8]} 24... Nc4 {[%clk
0:01:20.2]} 25. Rd1 {[%clk 0:01:23.5]} 25... Nxb2 {[%clk 0:01:17.8]} 26. Rb1
{[%clk 0:01:19.2]} 26... Qb4 {[%clk 0:00:58.6]} 27. Qd4 {[%clk 0:01:01.4]} 27...
Nc4 {[%clk 0:00:51.7]} 28. Nd2 {[%clk 0:00:47.4]} 28... Nxd2 {[%clk 0:00:51.6]}
29. Rxb4 {[%clk 0:00:35.3]} 29... Nxf3+ {[%clk 0:00:51.4]} 30. Kf2 {[%clk
0:00:35.1]} 30... Nxd4 {[%clk 0:00:47.6]} 31. Rxd4 {[%clk 0:00:34.9]} 31... Rb8
{[%clk 0:00:46.5]} 32. Rhd1 {[%clk 0:00:28.5]} 32... Rb2 {[%clk 0:00:45.1]} 33.
R1d2 {[%clk 0:00:28.2]} 33... Re5 {[%clk 0:00:42.9]} 34. Bf4 {[%clk 0:00:21.8]}
34... Rxc5 {[%clk 0:00:42.4]} 35. Na4 {[%clk 0:00:21.6]} 35... Rbxc2 {[%clk
0:00:36.5]} 36. Nxc5 {[%clk 0:00:21.2]} 36... Rxc5 {[%clk 0:00:37.4]} 37. Kg3
{[%clk 0:00:21.3]} 37... Rc3+ {[%clk 0:00:37]} 38. Kh4 {[%clk 0:00:21]} 38...
Bf1 {[%clk 0:00:30.7]} 39. Rh2 {[%clk 0:00:19.7]} 39... c5 {[%clk 0:00:24]} 40.
Rd7 {[%clk 0:00:17.6]} 40... Rf3 {[%clk 0:00:18.8]} 41. Kg5 {[%clk 0:00:17]}
41... Bd3 {[%clk 0:00:13.8]} 42. Be5 {[%clk 0:00:16.3]} 42... g6 {[%clk
0:00:10.5]} 43. Rg7+ {[%clk 0:00:16]} 43... Kf8 {[%clk 0:00:10.4]} 44. Kf6
{[%clk 0:00:14.8]} 44... c4 {[%clk 0:00:07.4]} 45. Rb2 {[%clk 0:00:13.7]} 45...
Ke8 {[%clk 0:00:02.3]} 46. Rb8# {[%clk 0:00:13.1]} 1-0

[Event "Early-Titled-Tuesday-Blitz-November-28-2023"]
[Site "Chess.com"]
[Date "2023.11.28"]
[Round "6"]
[White "Good_Knight_Kiss"]
[Black "Barmen_EV"]
[Result "1-0"]
[WhiteElo "2351"]
[BlackElo "2497"]
[TimeControl "180+1"]
[EndTime "9:13:52 PST"]
[Termination "Good_Knight_Kiss won by checkmate"]

1. e4 {[%clk 0:03:00.9]} 1... e5 {[%clk 0:02:56.6]} 2. Nf3 {[%clk 0:02:57.2]}
2... Nc6 {[%clk 0:02:56.7]} 3. Bb5 {[%clk 0:02:54]} 3... a6 {[%clk 0:02:57]} 4.
Ba4 {[%clk 0:02:46.4]} 4... Nf6 {[%clk 0:02:56.9]} 5. O-O {[%clk 0:02:46]} 5...
b5 {[%clk 0:02:54.8]} 6. Bb3 {[%clk 0:02:45.9]} 6... Nxe4 {[%clk 0:02:55.7]} 7.
d4 {[%clk 0:02:45]} 7... d5 {[%clk 0:02:54.6]} 8. dxe5 {[%clk 0:02:45.2]} 8...
Be6 {[%clk 0:02:55.1]} 9. c3 {[%clk 0:02:45.5]} 9... Bc5 {[%clk 0:02:54.9]} 10.
Qd3 {[%clk 0:02:44.8]} 10... O-O {[%clk 0:02:52.7]} 11. Be3 {[%clk 0:02:37.2]}
11... f6 {[%clk 0:02:42.3]} 12. exf6 {[%clk 0:02:22.1]} 12... Rxf6 {[%clk
0:02:43.2]} 13. Nbd2 {[%clk 0:02:17.1]} 13... Nxd2 {[%clk 0:02:29.1]} 14. Qxd2
{[%clk 0:02:04.6]} 14... Rxf3 {[%clk 0:02:26.4]} 15. Bxc5 {[%clk 0:01:50.7]}
15... Rf5 {[%clk 0:02:17.4]} 16. Rfe1 {[%clk 0:01:46.1]} 16... Bf7 {[%clk
0:02:15.2]} 17. Rad1 {[%clk 0:01:32.9]} 17... Rh5 {[%clk 0:02:08.3]} 18. Qf4
{[%clk 0:01:22.5]} 18... Qd7 {[%clk 0:01:57.7]} 19. Re3 {[%clk 0:01:11.7]} 19...
Rh6 {[%clk 0:01:25.3]} 20. Rg3 {[%clk 0:00:59.3]} 20... Kh8 {[%clk 0:00:57.6]}
21. Bc2 {[%clk 0:00:40]} 21... Nd8 {[%clk 0:00:47.2]} 22. Bd4 {[%clk 0:00:33.9]}
22... Rg6 {[%clk 0:00:23.4]} 23. Bxg6 {[%clk 0:00:32.9]} 23... hxg6 {[%clk
0:00:24.3]} 24. Qh4+ {[%clk 0:00:22.8]} 24... Kg8 {[%clk 0:00:23.7]} 25. Rh3
{[%clk 0:00:23.2]} 25... Kf8 {[%clk 0:00:17.1]} 26. Re1 {[%clk 0:00:17.4]} 26...
Ne6 {[%clk 0:00:16.8]} 27. Qh8+ {[%clk 0:00:14]} 27... Bg8 {[%clk 0:00:17.3]}
28. Rf3+ {[%clk 0:00:13.3]} 28... Ke7 {[%clk 0:00:17.7]} 29. Qxg7+ {[%clk
0:00:10.2]} 29... Kd6 {[%clk 0:00:18.3]} 30. Qxd7+ {[%clk 0:00:07.1]} 30... Kxd7
{[%clk 0:00:19.1]} 31. Rf6 {[%clk 0:00:06.8]} 31... c5 {[%clk 0:00:19]} 32. Be5
{[%clk 0:00:06]} 32... Re8 {[%clk 0:00:19.5]} 33. Rxg6 {[%clk 0:00:05.8]} 33...
Nf8 {[%clk 0:00:19.7]} 34. Rg7+ {[%clk 0:00:05.7]} 34... Kc6 {[%clk 0:00:20.1]}
35. f4 {[%clk 0:00:06]} 35... Be6 {[%clk 0:00:20.1]} 36. h4 {[%clk 0:00:04.9]}
36... Rc8 {[%clk 0:00:18.5]} 37. h5 {[%clk 0:00:05]} 37... Bf5 {[%clk
0:00:16.9]} 38. g4 {[%clk 0:00:02.3]} 38... Nh7 {[%clk 0:00:17.5]} 39. gxf5
{[%clk 0:00:01.5]} 39... Nf8 {[%clk 0:00:16.9]} 40. Rg6+ {[%clk 0:00:01.7]}
40... Nxg6 {[%clk 0:00:16.2]} 41. fxg6 {[%clk 0:00:01.7]} 41... d4 {[%clk
0:00:17.1]} 42. g7 {[%clk 0:00:01.9]} 42... Kd5 {[%clk 0:00:18]} 43. cxd4 {[%clk
0:00:02]} 43... c4 {[%clk 0:00:18.3]} 44. h6 {[%clk 0:00:02.9]} 44... b4 {[%clk
0:00:19.2]} 45. h7 {[%clk 0:00:03.1]} 45... c3 {[%clk 0:00:20.1]} 46. g8=Q+
{[%clk 0:00:03.6]} 46... Rxg8+ {[%clk 0:00:20]} 47. hxg8=Q+ {[%clk 0:00:04.1]}
47... Kc6 {[%clk 0:00:19.6]} 48. bxc3 {[%clk 0:00:05]} 48... Kb5 {[%clk
0:00:20.5]} 49. Qb3 {[%clk 0:00:04.9]} 49... a5 {[%clk 0:00:20.6]} 50. cxb4
{[%clk 0:00:04.8]} 50... Ka6 {[%clk 0:00:20.7]} 51. b5+ {[%clk 0:00:04.9]} 51...
Ka7 {[%clk 0:00:21.1]} 52. Qc4 {[%clk 0:00:04.6]} 52... a4 {[%clk 0:00:22]} 53.
Qc5+ {[%clk 0:00:04.1]} 53... Kb7 {[%clk 0:00:22.2]} 54. d5 {[%clk 0:00:04.7]}
54... Ka8 {[%clk 0:00:22.2]} 55. d6 {[%clk 0:00:04.7]} 55... Kb8 {[%clk
0:00:23.1]} 56. Qc7+ {[%clk 0:00:04.8]} 56... Ka8 {[%clk 0:00:22.7]} 57. Qc6+
{[%clk 0:00:05.2]} 57... Ka7 {[%clk 0:00:22.7]} 58. Bd4+ {[%clk 0:00:05.5]}
58... Kb8 {[%clk 0:00:23.3]} 59. Re8# {[%clk 0:00:05.5]} 1-0

[Event "Early-Titled-Tuesday-Blitz-November-28-2023"]
[Site "Chess.com"]
[Date "2023.11.28"]
[Round "6"]
[White "Grammnik"]
[Black "Politov_Pavel"]
[Result "1-0"]
[WhiteElo "2326"]
[BlackElo "2117"]
[TimeControl "180+1"]
[EndTime "9:13:54 PST"]
[Termination "Grammnik won on time"]

1. d4 {[%clk 0:01:15.7]} 1... d5 {[%clk 0:02:56.4]} 2. Nf3 {[%clk 0:01:15.6]}
2... Nf6 {[%clk 0:02:54.4]} 3. c4 {[%clk 0:01:16.5]} 3... dxc4 {[%clk
0:02:55.1]} 4. Nc3 {[%clk 0:01:17.2]} 4... a6 {[%clk 0:02:54.4]} 5. a4 {[%clk
0:01:17]} 5... e6 {[%clk 0:02:43.7]} 6. e3 {[%clk 0:01:17.4]} 6... c5 {[%clk
0:02:43.1]} 7. Bxc4 {[%clk 0:01:17.2]} 7... Nc6 {[%clk 0:02:42.6]} 8. d5 {[%clk
0:01:16.8]} 8... exd5 {[%clk 0:02:41.9]} 9. Nxd5 {[%clk 0:01:17.7]} 9... Nxd5
{[%clk 0:02:37.1]} 10. Bxd5 {[%clk 0:01:18.6]} 10... Be7 {[%clk 0:02:11.3]} 11.
Bxc6+ {[%clk 0:01:18.1]} 11... bxc6 {[%clk 0:02:04.8]} 12. Qxd8+ {[%clk
0:01:19]} 12... Bxd8 {[%clk 0:02:03.1]} 13. Bd2 {[%clk 0:01:19.9]} 13... Rb8
{[%clk 0:02:01.7]} 14. Bc3 {[%clk 0:01:19.5]} 14... O-O {[%clk 0:02:00.7]} 15.
O-O {[%clk 0:01:16.4]} 15... Be6 {[%clk 0:01:58]} 16. Ne5 {[%clk 0:01:15.3]}
16... Rc8 {[%clk 0:01:54.7]} 17. e4 {[%clk 0:01:14.3]} 17... Bf6 {[%clk
0:01:51]} 18. f3 {[%clk 0:01:12]} 18... Rfe8 {[%clk 0:01:48.9]} 19. Rfc1 {[%clk
0:01:10.9]} 19... Bg5 {[%clk 0:01:41.7]} 20. Re1 {[%clk 0:01:07]} 20... Bf6
{[%clk 0:01:37.6]} 21. Rec1 {[%clk 0:01:06.4]} 21... Bg5 {[%clk 0:01:36.7]} 22.
Re1 {[%clk 0:01:05.6]} 22... Bf6 {[%clk 0:01:33.9]} 23. Nd3 {[%clk 0:01:05.5]}
23... Bd4+ {[%clk 0:01:26.8]} 24. Kh1 {[%clk 0:01:04.3]} 24... Bc4 {[%clk
0:01:22.4]} 25. Nf4 {[%clk 0:00:58.1]} 25... Bf2 {[%clk 0:01:17.7]} 26. Red1
{[%clk 0:00:56]} 26... Bb3 {[%clk 0:01:11.5]} 27. Rd7 {[%clk 0:00:54.1]} 27...
Red8 {[%clk 0:01:05.4]} 28. Rb7 {[%clk 0:00:47.2]} 28... Bxa4 {[%clk 0:01:03]}
29. g3 {[%clk 0:00:41.8]} 29... Rd1+ {[%clk 0:00:49.3]} 30. Rxd1 {[%clk
0:00:40.3]} 30... Bxd1 {[%clk 0:00:45.8]} 31. Kg2 {[%clk 0:00:41.2]} 31... Bd4
{[%clk 0:00:45.5]} 32. Rd7 {[%clk 0:00:36.3]} 32... Bxc3 {[%clk 0:00:41.2]} 33.
bxc3 {[%clk 0:00:37.2]} 33... Bb3 {[%clk 0:00:40.8]} 34. Ra7 {[%clk 0:00:36.2]}
34... Bc4 {[%clk 0:00:38.8]} 35. Kf2 {[%clk 0:00:35.7]} 35... Rd8 {[%clk
0:00:38]} 36. Ke3 {[%clk 0:00:34.2]} 36... Bb5 {[%clk 0:00:37.4]} 37. h4 {[%clk
0:00:31.5]} 37... g6 {[%clk 0:00:34.9]} 38. g4 {[%clk 0:00:31.1]} 38... Rd1
{[%clk 0:00:31.1]} 39. h5 {[%clk 0:00:31.1]} 39... Re1+ {[%clk 0:00:29.2]} 40.
Kf2 {[%clk 0:00:30.6]} 40... Rf1+ {[%clk 0:00:28.4]} 41. Kg2 {[%clk 0:00:30]}
41... Rc1 {[%clk 0:00:26.3]} 42. h6 {[%clk 0:00:30.2]} 42... Kf8 {[%clk
0:00:23.5]} 43. Nh3 {[%clk 0:00:26.3]} 43... Rc2+ {[%clk 0:00:20.8]} 44. Kg3
{[%clk 0:00:25.9]} 44... Rxc3 {[%clk 0:00:17.4]} 45. Ng5 {[%clk 0:00:25.8]}
45... Be2 {[%clk 0:00:11.7]} 46. Nxh7+ {[%clk 0:00:25.7]} 46... Kg8 {[%clk
0:00:08.3]} 47. Nf6+ {[%clk 0:00:25.8]} 47... Kf8 {[%clk 0:00:06.9]} 48. h7
{[%clk 0:00:23]} 48... Rxf3+ {[%clk 0:00:01.9]} 49. Kh4 {[%clk 0:00:23.2]} 49...
Kg7 {[%clk 0:00:01.5]} 50. Rxf7+ {[%clk 0:00:20.7]} 1-0